[Event "Early-Titled-Tuesday-Blitz-September-05-2023"]
[Site "Chess.com"]
[Date "2023.09.05"]
[Round "6"]
[White "kingofthenil"]
[Black "Anton_Demchenko"]
[Result "0-1"]
[WhiteElo "2729"]
[BlackElo "2930"]
[TimeControl "180+1"]
[EndTime "9:06:56 PDT"]
[Termination "Anton_Demchenko won on time"]

1. e4 {[%clk 0:03:00.9]} 1... e5 {[%clk 0:02:59]} 2. Nf3 {[%clk 0:03:00.8]} 2...
Nc6 {[%clk 0:02:56.6]} 3. Bb5 {[%clk 0:02:48.5]} 3... a6 {[%clk 0:02:56.1]} 4.
Bxc6 {[%clk 0:02:46]} 4... dxc6 {[%clk 0:02:57]} 5. O-O {[%clk 0:02:45]} 5...
Qf6 {[%clk 0:02:57.3]} 6. d4 {[%clk 0:02:44.1]} 6... exd4 {[%clk 0:02:58.2]} 7.
Bg5 {[%clk 0:02:44.2]} 7... Qd6 {[%clk 0:02:57.9]} 8. Nxd4 {[%clk 0:02:44.1]}
8... Be7 {[%clk 0:02:57.9]} 9. Be3 {[%clk 0:02:38.1]} 9... Bd7 {[%clk
0:02:57.3]} 10. Nd2 {[%clk 0:02:28.6]} 10... Qg6 {[%clk 0:02:42.2]} 11. Qf3
{[%clk 0:01:55.5]} 11... Nf6 {[%clk 0:02:29.7]} 12. Rfe1 {[%clk 0:01:36.8]}
12... Qg4 {[%clk 0:02:12.2]} 13. e5 {[%clk 0:01:06.5]} 13... Qxf3 {[%clk
0:01:55.6]} 14. N2xf3 {[%clk 0:01:07.4]} 14... Nd5 {[%clk 0:01:48.4]} 15. Bg5
{[%clk 0:01:06.8]} 15... Be6 {[%clk 0:01:18.4]} 16. Nxe6 {[%clk 0:00:46.4]}
16... fxe6 {[%clk 0:01:18.3]} 17. Rad1 {[%clk 0:00:47.1]} 17... Rd8 {[%clk
0:01:05.1]} 18. c4 {[%clk 0:00:26.1]} 18... Nb6 {[%clk 0:00:59.4]} 19. b3 {[%clk
0:00:23.1]} 19... Nd7 {[%clk 0:00:53.8]} 20. h4 {[%clk 0:00:19.4]} 20... h6
{[%clk 0:00:51.9]} 21. Bxe7 {[%clk 0:00:19]} 21... Kxe7 {[%clk 0:00:52.8]} 22.
Rd4 {[%clk 0:00:12.8]} 22... Nc5 {[%clk 0:00:47.9]} 23. Red1 {[%clk 0:00:13.2]}
23... Rxd4 {[%clk 0:00:46.5]} 24. Rxd4 {[%clk 0:00:14.1]} 24... a5 {[%clk
0:00:47.1]} 25. h5 {[%clk 0:00:12]} 25... Rd8 {[%clk 0:00:43]} 26. Rxd8 {[%clk
0:00:10.2]} 26... Kxd8 {[%clk 0:00:43.9]} 27. Nd2 {[%clk 0:00:07.4]} 27... Nd3
{[%clk 0:00:42.7]} 28. Kf1 {[%clk 0:00:06.7]} 28... Nxe5 {[%clk 0:00:41.3]} 29.
Ke2 {[%clk 0:00:07.6]} 29... c5 {[%clk 0:00:40.1]} 30. Ne4 {[%clk 0:00:07.5]}
30... b6 {[%clk 0:00:40.1]} 31. f4 {[%clk 0:00:07.5]} 31... Nc6 {[%clk
0:00:40.4]} 32. g4 {[%clk 0:00:07.6]} 32... Ke7 {[%clk 0:00:36.6]} 33. g5 {[%clk
0:00:07.7]} 33... Nb4 {[%clk 0:00:31.8]} 34. Nc3 {[%clk 0:00:06.7]} 34... Nc2
{[%clk 0:00:27.3]} 35. Kf3 {[%clk 0:00:06.2]} 35... Nd4+ {[%clk 0:00:24.5]} 36.
Ke4 {[%clk 0:00:06.1]} 36... Nf5 {[%clk 0:00:25.3]} 37. Ke5 {[%clk 0:00:06.1]}
37... Nd6 {[%clk 0:00:16.2]} 38. g6 {[%clk 0:00:03.9]} 38... c6 {[%clk
0:00:12.1]} 39. Ne4 {[%clk 0:00:02.3]} 39... Nf5 {[%clk 0:00:11.1]} 40. Nc3
{[%clk 0:00:01.4]} 40... Ng3 {[%clk 0:00:09.6]} 41. Na4 {[%clk 0:00:02]} 41...
Nxh5 {[%clk 0:00:09.6]} 42. Nxb6 {[%clk 0:00:02.6]} 42... Nf6 {[%clk 0:00:08.6]}
43. Nc8+ {[%clk 0:00:03.1]} 43... Kd7 {[%clk 0:00:08.8]} 44. Nb6+ {[%clk
0:00:03.8]} 44... Kc7 {[%clk 0:00:04.5]} 45. Na4 {[%clk 0:00:04.3]} 45... h5
{[%clk 0:00:03.6]} 46. Nxc5 {[%clk 0:00:04.8]} 46... Nd7+ {[%clk 0:00:03.3]} 47.
Nxd7 {[%clk 0:00:03.4]} 47... Kxd7 {[%clk 0:00:04.2]} 48. f5 {[%clk 0:00:03.9]}
48... exf5 {[%clk 0:00:02.8]} 49. Kxf5 {[%clk 0:00:04.8]} 49... h4 {[%clk
0:00:02]} 50. Kg4 {[%clk 0:00:05.1]} 50... h3 {[%clk 0:00:01.8]} 51. Kxh3 {[%clk
0:00:05.5]} 51... Ke6 {[%clk 0:00:02.5]} 52. Kg4 {[%clk 0:00:05.8]} 52... Kf6
{[%clk 0:00:02.8]} 53. Kh5 {[%clk 0:00:02.1]} 53... c5 {[%clk 0:00:03.1]} 54. a3
{[%clk 0:00:02.5]} 54... Kf5 {[%clk 0:00:03.1]} 0-1

[Event "Early-Titled-Tuesday-Blitz-September-05-2023"]
[Site "Chess.com"]
[Date "2023.09.05"]
[Round "6"]
[White "Barbus89"]
[Black "crazy_m_attack"]
[Result "1-0"]
[WhiteElo "2557"]
[BlackElo "2354"]
[TimeControl "180+1"]
[EndTime "9:06:56 PDT"]
[Termination "Barbus89 won by checkmate"]

1. Nf3 {[%clk 0:03:00.9]} 1... Nf6 {[%clk 0:02:59.8]} 2. g3 {[%clk 0:03:00.2]}
2... d5 {[%clk 0:03:00.2]} 3. Bg2 {[%clk 0:02:59.3]} 3... e6 {[%clk 0:03:00.7]}
4. O-O {[%clk 0:02:59.1]} 4... Be7 {[%clk 0:03:01.2]} 5. d4 {[%clk 0:02:58.8]}
5... O-O {[%clk 0:03:01.2]} 6. c4 {[%clk 0:02:59]} 6... dxc4 {[%clk 0:03:02.1]}
7. Qa4 {[%clk 0:02:57.7]} 7... a6 {[%clk 0:03:01.9]} 8. Qxc4 {[%clk 0:02:57.6]}
8... b5 {[%clk 0:03:02.2]} 9. Qc2 {[%clk 0:02:58.2]} 9... Bb7 {[%clk 0:03:02.6]}
10. Bg5 {[%clk 0:02:58.7]} 10... Be4 {[%clk 0:02:57.3]} 11. Qc1 {[%clk 0:02:56]}
11... Nbd7 {[%clk 0:02:48.9]} 12. Nbd2 {[%clk 0:02:54]} 12... Bb7 {[%clk
0:02:43.7]} 13. Bxf6 {[%clk 0:02:48.7]} 13... Nxf6 {[%clk 0:02:40.9]} 14. Nb3
{[%clk 0:02:49.6]} 14... Ra7 {[%clk 0:02:15.4]} 15. Ne5 {[%clk 0:02:42.1]} 15...
Bxg2 {[%clk 0:02:07.1]} 16. Kxg2 {[%clk 0:02:43]} 16... Qa8+ {[%clk 0:01:55.1]}
17. Kg1 {[%clk 0:02:34.3]} 17... Bd6 {[%clk 0:01:46]} 18. Nc6 {[%clk 0:02:28.1]}
18... Rb7 {[%clk 0:01:45.6]} 19. Qc2 {[%clk 0:01:34.4]} 19... Rb6 {[%clk
0:01:37.4]} 20. Nba5 {[%clk 0:01:28]} 20... Nd5 {[%clk 0:01:08.7]} 21. a3 {[%clk
0:01:25]} 21... Rc8 {[%clk 0:00:42.4]} 22. b4 {[%clk 0:01:06.4]} 22... Ne7
{[%clk 0:00:33.4]} 23. Rac1 {[%clk 0:01:02.9]} 23... Nxc6 {[%clk 0:00:28.5]} 24.
Nxc6 {[%clk 0:01:03.8]} 24... Re8 {[%clk 0:00:11.5]} 25. e4 {[%clk 0:01:01.3]}
25... e5 {[%clk 0:00:09.4]} 26. d5 {[%clk 0:00:48.8]} 26... Qc8 {[%clk 0:00:07]}
27. Qe2 {[%clk 0:00:42.8]} 27... f5 {[%clk 0:00:06.7]} 28. Qd3 {[%clk
0:00:24.4]} 28... Rf8 {[%clk 0:00:06.3]} 29. exf5 {[%clk 0:00:14.8]} 29... Qxf5
{[%clk 0:00:05.2]} 30. Qxf5 {[%clk 0:00:13.6]} 30... Rxf5 {[%clk 0:00:06.1]} 31.
f3 {[%clk 0:00:13.4]} 31... Kf8 {[%clk 0:00:03.7]} 32. Kg2 {[%clk 0:00:13.2]}
32... Ke8 {[%clk 0:00:03.6]} 33. Rfe1 {[%clk 0:00:13.4]} 33... Kd7 {[%clk
0:00:03.3]} 34. Re4 {[%clk 0:00:13.4]} 34... Rb7 {[%clk 0:00:02]} 35. h4 {[%clk
0:00:06.6]} 35... Rb6 {[%clk 0:00:01.9]} 36. Rc2 {[%clk 0:00:06.5]} 36... Rb7
{[%clk 0:00:02.1]} 37. Rc3 {[%clk 0:00:07]} 37... Rb6 {[%clk 0:00:02.5]} 38. Kh3
{[%clk 0:00:07.7]} 38... g6 {[%clk 0:00:03.1]} 39. Kg2 {[%clk 0:00:05.7]} 39...
Rb7 {[%clk 0:00:02.8]} 40. Rce3 {[%clk 0:00:04.8]} 40... Rb6 {[%clk 0:00:03.3]}
41. g4 {[%clk 0:00:04.7]} 41... Rf4 {[%clk 0:00:02.7]} 42. Rxf4 {[%clk
0:00:04.9]} 42... exf4 {[%clk 0:00:03]} 43. Re4 {[%clk 0:00:04]} 43... Rb7
{[%clk 0:00:03.4]} 44. h5 {[%clk 0:00:04]} 44... Rb6 {[%clk 0:00:03.8]} 45. hxg6
{[%clk 0:00:03.3]} 45... hxg6 {[%clk 0:00:04.7]} 46. Kf2 {[%clk 0:00:03.7]}
46... g5 {[%clk 0:00:04.8]} 47. Ke2 {[%clk 0:00:03.7]} 47... Rb7 {[%clk
0:00:02.6]} 48. Re6 {[%clk 0:00:03.6]} 48... Rb6 {[%clk 0:00:02.7]} 49. Rg6
{[%clk 0:00:04.1]} 49... a5 {[%clk 0:00:02.1]} 50. bxa5 {[%clk 0:00:03.9]} 50...
Ra6 {[%clk 0:00:02.4]} 51. Rg8 {[%clk 0:00:04.2]} 51... Bxa3 {[%clk 0:00:02.2]}
52. Rd8# {[%clk 0:00:04.2]} 1-0

[Event "Early-Titled-Tuesday-Blitz-September-05-2023"]
[Site "Chess.com"]
[Date "2023.09.05"]
[Round "6"]
[White "MathiasWomacka"]
[Black "bescmelasti"]
[Result "1/2-1/2"]
[WhiteElo "2493"]
[BlackElo "2602"]
[TimeControl "180+1"]
[EndTime "9:06:57 PDT"]
[Termination "Game drawn by repetition"]

1. e4 {[%clk 0:03:00.9]} 1... e6 {[%clk 0:02:59.6]} 2. d4 {[%clk 0:02:59.9]}
2... d5 {[%clk 0:03:00.5]} 3. Nd2 {[%clk 0:02:59.4]} 3... c5 {[%clk 0:02:59.5]}
4. exd5 {[%clk 0:02:59.4]} 4... Qxd5 {[%clk 0:03:00.4]} 5. Ngf3 {[%clk
0:02:58.9]} 5... cxd4 {[%clk 0:02:59.6]} 6. Bc4 {[%clk 0:02:59.2]} 6... Qd6
{[%clk 0:03:00]} 7. O-O {[%clk 0:02:58.9]} 7... Nf6 {[%clk 0:03:00.1]} 8. Nb3
{[%clk 0:02:59.3]} 8... Nc6 {[%clk 0:03:00.1]} 9. Nbxd4 {[%clk 0:02:59.8]} 9...
Nxd4 {[%clk 0:03:01]} 10. Nxd4 {[%clk 0:02:59.7]} 10... Be7 {[%clk 0:03:01.4]}
11. c3 {[%clk 0:02:57.9]} 11... O-O {[%clk 0:03:01.8]} 12. Qf3 {[%clk
0:02:55.4]} 12... Qc7 {[%clk 0:02:58.7]} 13. Bb3 {[%clk 0:02:53.2]} 13... Bd7
{[%clk 0:02:57.7]} 14. Re1 {[%clk 0:02:48.6]} 14... Bd6 {[%clk 0:02:43.6]} 15.
h3 {[%clk 0:02:37.8]} 15... a5 {[%clk 0:02:40.2]} 16. a4 {[%clk 0:02:35.7]}
16... Qb6 {[%clk 0:02:34.6]} 17. Bc2 {[%clk 0:02:30.3]} 17... Rac8 {[%clk
0:02:26.5]} 18. Rb1 {[%clk 0:02:23.9]} 18... Nd5 {[%clk 0:02:16.9]} 19. Nf5
{[%clk 0:01:49]} 19... exf5 {[%clk 0:02:03.7]} 20. Qxd5 {[%clk 0:01:47.9]} 20...
Be6 {[%clk 0:01:55.9]} 21. Qf3 {[%clk 0:01:42]} 21... g6 {[%clk 0:01:53.5]} 22.
Be3 {[%clk 0:01:40.8]} 22... Bc5 {[%clk 0:01:53.6]} 23. Bxc5 {[%clk 0:01:38.8]}
23... Rxc5 {[%clk 0:01:54.5]} 24. Red1 {[%clk 0:01:34.5]} 24... Rfc8 {[%clk
0:01:53.9]} 25. Rd4 {[%clk 0:01:29.3]} 25... Rc4 {[%clk 0:01:51.6]} 26. Rxc4
{[%clk 0:01:22.5]} 26... Rxc4 {[%clk 0:01:52.5]} 27. b3 {[%clk 0:01:12.2]} 27...
Rc7 {[%clk 0:01:52.2]} 28. Rd1 {[%clk 0:01:09.4]} 28... Qc5 {[%clk 0:01:48.4]}
29. c4 {[%clk 0:01:08.6]} 29... b6 {[%clk 0:01:46.6]} 30. Qf4 {[%clk 0:01:06.3]}
30... Rc8 {[%clk 0:01:44.6]} 31. Qd6 {[%clk 0:01:03.5]} 31... Qc6 {[%clk
0:01:31.3]} 32. Qxc6 {[%clk 0:01:02.3]} 32... Rxc6 {[%clk 0:01:32.2]} 33. f4
{[%clk 0:01:01.6]} 33... Kf8 {[%clk 0:01:31.8]} 34. Kf2 {[%clk 0:01:01.8]} 34...
Ke7 {[%clk 0:01:31.9]} 35. Ke3 {[%clk 0:01:02.4]} 35... h6 {[%clk 0:01:28.6]}
36. h4 {[%clk 0:01:00.7]} 36... Rc8 {[%clk 0:01:20]} 37. g3 {[%clk 0:00:59.9]}
37... Rg8 {[%clk 0:01:16.8]} 38. Kd4 {[%clk 0:00:58.1]} 38... Kd6 {[%clk
0:01:15.9]} 39. Kc3+ {[%clk 0:00:53.1]} 39... Kc5 {[%clk 0:01:16.2]} 40. Re1
{[%clk 0:00:53.2]} 40... Kc6 {[%clk 0:01:07.5]} 41. b4 {[%clk 0:00:48.7]} 41...
axb4+ {[%clk 0:01:08.4]} 42. Kxb4 {[%clk 0:00:49]} 42... g5 {[%clk 0:01:08.4]}
43. Re5 {[%clk 0:00:46.3]} 43... gxh4 {[%clk 0:01:07.9]} 44. gxh4 {[%clk
0:00:46.8]} 44... Rg4 {[%clk 0:00:44.2]} 45. Bxf5 {[%clk 0:00:46]} 45... Bxf5
{[%clk 0:00:44.6]} 46. Rxf5 {[%clk 0:00:46.8]} 46... Rxh4 {[%clk 0:00:42.6]} 47.
Rf6+ {[%clk 0:00:45.8]} 47... Kb7 {[%clk 0:00:40.7]} 48. Rxf7+ {[%clk
0:00:45.9]} 48... Ka6 {[%clk 0:00:41.5]} 49. Rf6 {[%clk 0:00:45.4]} 49... Kb7
{[%clk 0:00:41.7]} 50. Kb5 {[%clk 0:00:45]} 50... Rh1 {[%clk 0:00:41.5]} 51.
Rf7+ {[%clk 0:00:40.2]} 51... Kc8 {[%clk 0:00:41.4]} 52. Kxb6 {[%clk 0:00:40.3]}
52... h5 {[%clk 0:00:39.9]} 53. Rh7 {[%clk 0:00:36.7]} 53... h4 {[%clk
0:00:39.8]} 54. Kc6 {[%clk 0:00:36.7]} 54... Kb8 {[%clk 0:00:39.8]} 55. f5
{[%clk 0:00:28.7]} 55... h3 {[%clk 0:00:39.3]} 56. f6 {[%clk 0:00:28.6]} 56...
Rf1 {[%clk 0:00:37.6]} 57. Rxh3 {[%clk 0:00:20.7]} 57... Rxf6+ {[%clk
0:00:37.1]} 58. Kb5 {[%clk 0:00:20.8]} 58... Rf7 {[%clk 0:00:35]} 59. c5 {[%clk
0:00:19.4]} 59... Kb7 {[%clk 0:00:35.4]} 60. Rh6 {[%clk 0:00:16]} 60... Rg7
{[%clk 0:00:32.4]} 61. a5 {[%clk 0:00:14.8]} 61... Rg1 {[%clk 0:00:29.9]} 62.
Rh7+ {[%clk 0:00:14.1]} 62... Kb8 {[%clk 0:00:29.9]} 63. Kb6 {[%clk 0:00:14.2]}
63... Rb1+ {[%clk 0:00:30]} 64. Kc6 {[%clk 0:00:13]} 64... Ra1 {[%clk
0:00:30.6]} 65. Kb6 {[%clk 0:00:11.1]} 65... Rb1+ {[%clk 0:00:30.6]} 66. Ka6
{[%clk 0:00:08.8]} 66... Rc1 {[%clk 0:00:31]} 67. Kb5 {[%clk 0:00:06.4]} 67...
Rb1+ {[%clk 0:00:30.9]} 68. Kc6 {[%clk 0:00:06.5]} 68... Ra1 {[%clk 0:00:31]}
69. Kb6 {[%clk 0:00:06.7]} 69... Rb1+ {[%clk 0:00:31.5]} 1/2-1/2

[Event "Early-Titled-Tuesday-Blitz-September-05-2023"]
[Site "Chess.com"]
[Date "2023.09.05"]
[Round "6"]
[White "Atanejhad"]
[Black "benny_aizenberg"]
[Result "0-1"]
[WhiteElo "2405"]
[BlackElo "2654"]
[TimeControl "180+1"]
[EndTime "9:06:57 PDT"]
[Termination "benny_aizenberg won on time"]

1. d4 {[%clk 0:03:00.9]} 1... g5 {[%clk 0:02:57]} 2. Bxg5 {[%clk 0:02:58.9]}
2... Bg7 {[%clk 0:02:55.5]} 3. c3 {[%clk 0:02:59.5]} 3... c5 {[%clk 0:02:51.3]}
4. dxc5 {[%clk 0:02:59]} 4... Na6 {[%clk 0:02:48.6]} 5. Nf3 {[%clk 0:02:55.9]}
5... Nxc5 {[%clk 0:02:47]} 6. e3 {[%clk 0:02:56.3]} 6... Qb6 {[%clk 0:02:43.5]}
7. Qc1 {[%clk 0:02:47.1]} 7... d5 {[%clk 0:02:40.5]} 8. Nbd2 {[%clk 0:02:47.2]}
8... Bf5 {[%clk 0:02:38.2]} 9. Nb3 {[%clk 0:02:42.6]} 9... Nd3+ {[%clk 0:02:31]}
10. Bxd3 {[%clk 0:02:41.4]} 10... Bxd3 {[%clk 0:02:30.2]} 11. Qd2 {[%clk
0:02:41.8]} 11... Bc4 {[%clk 0:02:24.5]} 12. Bf4 {[%clk 0:02:30.1]} 12... Nf6
{[%clk 0:02:20.2]} 13. Qd4 {[%clk 0:02:22.2]} 13... Qb5 {[%clk 0:02:01.8]} 14.
Be5 {[%clk 0:02:21.4]} 14... O-O {[%clk 0:01:59.1]} 15. g4 {[%clk 0:02:09]}
15... Ne8 {[%clk 0:01:42.9]} 16. Bxg7 {[%clk 0:02:07.4]} 16... Nxg7 {[%clk
0:01:41.7]} 17. h4 {[%clk 0:01:49.2]} 17... a5 {[%clk 0:01:34.8]} 18. Qc5 {[%clk
0:01:23.1]} 18... Qa6 {[%clk 0:01:14.9]} 19. Nbd2 {[%clk 0:01:19.9]} 19... Qe6
{[%clk 0:00:52.7]} 20. Nd4 {[%clk 0:00:45.6]} 20... Qxg4 {[%clk 0:00:46.4]} 21.
N2f3 {[%clk 0:00:46.1]} 21... Qe4 {[%clk 0:00:32.2]} 22. Rg1 {[%clk 0:00:38.7]}
22... e5 {[%clk 0:00:19.9]} 23. Qe7 {[%clk 0:00:24.7]} 23... exd4 {[%clk
0:00:16.3]} 24. Qf6 {[%clk 0:00:24.5]} 24... Qg6 {[%clk 0:00:12.1]} 25. Rxg6
{[%clk 0:00:24.1]} 25... fxg6 {[%clk 0:00:13]} 26. Qxd4 {[%clk 0:00:20.4]} 26...
Rxf3 {[%clk 0:00:13.1]} 27. O-O-O {[%clk 0:00:20.5]} 27... Rxf2 {[%clk
0:00:12.9]} 28. b3 {[%clk 0:00:20.9]} 28... Nf5 {[%clk 0:00:11.9]} 29. Qe5
{[%clk 0:00:18.6]} 29... Ba6 {[%clk 0:00:08.4]} 30. Qxd5+ {[%clk 0:00:17.7]}
30... Kh8 {[%clk 0:00:07.2]} 31. Qe5+ {[%clk 0:00:18.3]} 31... Ng7 {[%clk
0:00:07.4]} 32. Rd7 {[%clk 0:00:18.4]} 32... Rg8 {[%clk 0:00:06.9]} 33. c4
{[%clk 0:00:18.8]} 33... Rf5 {[%clk 0:00:06.5]} 34. Qd4 {[%clk 0:00:18.4]} 34...
Rf1+ {[%clk 0:00:06.6]} 35. Kb2 {[%clk 0:00:17.3]} 35... Rff8 {[%clk 0:00:06.5]}
36. Ka3 {[%clk 0:00:15.9]} 36... h6 {[%clk 0:00:06.5]} 37. h5 {[%clk 0:00:15.9]}
37... gxh5 {[%clk 0:00:04.8]} 38. Qd6 {[%clk 0:00:16.5]} 38... Nf5 {[%clk
0:00:04.3]} 39. Qe5+ {[%clk 0:00:15.7]} 39... Rg7 {[%clk 0:00:04.5]} 40. Rxg7
{[%clk 0:00:14.9]} 40... Nxg7 {[%clk 0:00:04]} 41. Qe7 {[%clk 0:00:15]} 41...
Re8 {[%clk 0:00:04]} 42. Qf7 {[%clk 0:00:14.3]} 42... Rxe3 {[%clk 0:00:03.6]}
43. Qf8+ {[%clk 0:00:14.3]} 43... Kh7 {[%clk 0:00:04.1]} 44. Qd8 {[%clk
0:00:14.3]} 44... Bxc4 {[%clk 0:00:03.6]} 45. Qxa5 {[%clk 0:00:14.2]} 45... Bf7
{[%clk 0:00:02.4]} 46. Qd2 {[%clk 0:00:14.6]} 46... Re4 {[%clk 0:00:02.2]} 47.
Qd3 {[%clk 0:00:14.8]} 47... Bg6 {[%clk 0:00:02.8]} 48. Kb2 {[%clk 0:00:14.6]}
48... h4 {[%clk 0:00:03.1]} 49. Qh3 {[%clk 0:00:14.2]} 49... b5 {[%clk
0:00:03.3]} 50. a3 {[%clk 0:00:13.8]} 50... Re2+ {[%clk 0:00:03]} 51. Kc3 {[%clk
0:00:13.1]} 51... Re4 {[%clk 0:00:02.8]} 52. Qd7 {[%clk 0:00:10.4]} 52... Bf5
{[%clk 0:00:03.1]} 53. Qe7 {[%clk 0:00:08.2]} 53... Rxe7 {[%clk 0:00:02.1]} 0-1

[Event "Early-Titled-Tuesday-Blitz-September-05-2023"]
[Site "Chess.com"]
[Date "2023.09.05"]
[Round "6"]
[White "Cambek64"]
[Black "Hamisandwich"]
[Result "0-1"]
[WhiteElo "2499"]
[BlackElo "2655"]
[TimeControl "180+1"]
[EndTime "9:07:02 PDT"]
[Termination "Hamisandwich won on time"]

1. e4 {[%clk 0:02:59.1]} 1... a6 {[%clk 0:03:00]} 2. d4 {[%clk 0:02:58.4]} 2...
c6 {[%clk 0:03:00.5]} 3. c4 {[%clk 0:02:57.8]} 3... d5 {[%clk 0:03:00.7]} 4.
cxd5 {[%clk 0:02:57.4]} 4... cxd5 {[%clk 0:03:01.6]} 5. e5 {[%clk 0:02:57.2]}
5... Nc6 {[%clk 0:03:02]} 6. Be3 {[%clk 0:02:57.4]} 6... Bf5 {[%clk 0:02:57.7]}
7. Nc3 {[%clk 0:02:57.8]} 7... e6 {[%clk 0:02:58]} 8. Bd3 {[%clk 0:02:56.3]}
8... Nge7 {[%clk 0:02:51]} 9. Nge2 {[%clk 0:02:55]} 9... Bxd3 {[%clk 0:02:48.1]}
10. Qxd3 {[%clk 0:02:54.3]} 10... Nf5 {[%clk 0:02:49]} 11. O-O {[%clk
0:02:54.3]} 11... h5 {[%clk 0:02:45.2]} 12. Ng3 {[%clk 0:02:54.2]} 12... g6
{[%clk 0:02:39]} 13. Nxf5 {[%clk 0:02:53.7]} 13... gxf5 {[%clk 0:02:39.9]} 14.
Rac1 {[%clk 0:02:52.4]} 14... Rg8 {[%clk 0:02:21.1]} 15. Kh1 {[%clk 0:02:30.5]}
15... Rc8 {[%clk 0:02:11.5]} 16. Na4 {[%clk 0:02:14.4]} 16... Qa5 {[%clk
0:02:05.1]} 17. Qb3 {[%clk 0:02:08.3]} 17... Qb5 {[%clk 0:01:56.4]} 18. Qxb5
{[%clk 0:01:27.2]} 18... axb5 {[%clk 0:01:56.3]} 19. Nc5 {[%clk 0:01:27.9]}
19... Bxc5 {[%clk 0:01:40]} 20. Rxc5 {[%clk 0:01:24.9]} 20... b4 {[%clk
0:01:39.1]} 21. f3 {[%clk 0:01:19.9]} 21... Kd7 {[%clk 0:01:32.8]} 22. Rb5
{[%clk 0:01:14.9]} 22... Rc7 {[%clk 0:01:33.2]} 23. Kg1 {[%clk 0:00:57.6]} 23...
Ra8 {[%clk 0:01:32.9]} 24. Ra1 {[%clk 0:00:56.9]} 24... Ra5 {[%clk 0:01:25.5]}
25. Rxa5 {[%clk 0:00:48.3]} 25... Nxa5 {[%clk 0:01:26.4]} 26. Bd2 {[%clk
0:00:44.7]} 26... Rc4 {[%clk 0:01:12.4]} 27. Rc1 {[%clk 0:00:20.9]} 27... Rxd4
{[%clk 0:01:06.8]} 28. Be3 {[%clk 0:00:20.7]} 28... Rc4 {[%clk 0:00:53.8]} 29.
Rd1 {[%clk 0:00:19.3]} 29... Rc2 {[%clk 0:00:46.4]} 30. Rd2 {[%clk 0:00:18.2]}
30... Rxd2 {[%clk 0:00:21.3]} 31. Bxd2 {[%clk 0:00:15.5]} 31... Nc4 {[%clk
0:00:20.6]} 32. Bxb4 {[%clk 0:00:14.6]} 32... Nxb2 {[%clk 0:00:21.1]} 33. Bc3
{[%clk 0:00:14.5]} 33... Nc4 {[%clk 0:00:15.8]} 34. h4 {[%clk 0:00:14.1]} 34...
Ke8 {[%clk 0:00:14.7]} 35. Kf2 {[%clk 0:00:13.4]} 35... f4 {[%clk 0:00:13.4]}
36. g3 {[%clk 0:00:12.3]} 36... fxg3+ {[%clk 0:00:14.3]} 37. Kxg3 {[%clk
0:00:12.3]} 37... Ne3 {[%clk 0:00:10.3]} 38. Kf4 {[%clk 0:00:11.2]} 38... Nf5
{[%clk 0:00:10.3]} 39. Kg5 {[%clk 0:00:11.3]} 39... d4 {[%clk 0:00:10.5]} 40.
Bd2 {[%clk 0:00:11.3]} 40... d3 {[%clk 0:00:07.9]} 41. Kxh5 {[%clk 0:00:11.5]}
41... Ng3+ {[%clk 0:00:08.6]} 42. Kg4 {[%clk 0:00:11.5]} 42... Nf1 {[%clk
0:00:08.9]} 43. Bb4 {[%clk 0:00:09.6]} 43... d2 {[%clk 0:00:06.4]} 44. Bxd2
{[%clk 0:00:08.7]} 44... Nxd2 {[%clk 0:00:07.3]} 45. h5 {[%clk 0:00:08.2]} 45...
Nc4 {[%clk 0:00:05.7]} 46. f4 {[%clk 0:00:07.5]} 46... Kf8 {[%clk 0:00:06]} 47.
Kg5 {[%clk 0:00:07.6]} 47... Ne3 {[%clk 0:00:05.5]} 48. h6 {[%clk 0:00:07.7]}
48... Nf5 {[%clk 0:00:05.7]} 49. a4 {[%clk 0:00:05.6]} 49... b6 {[%clk
0:00:05.9]} 50. h7 {[%clk 0:00:03.4]} 50... Kg7 {[%clk 0:00:04.8]} 51. h8=Q+
{[%clk 0:00:01.7]} 51... Kxh8 {[%clk 0:00:05.2]} 52. Kf6 {[%clk 0:00:01.2]}
52... Kg8 {[%clk 0:00:05.7]} 53. a5 {[%clk 0:00:01.5]} 53... bxa5 {[%clk
0:00:05.3]} 0-1